fUSD/lending_fUSD_20240617
["ID","MTS","AMOUNT","RATE_DAILY","PERIOD"]
[329757078,1718650554954,-17850.06610688,0.00012383,2]
[329757079,1718650672245,-787.27907737,0.00012382,2]
[329757080,1718650672277,-92112.80932263,0.00012383,2]
[329757081,1718650686401,-929.0884,0.00012383,2]
[329757082,1718650688236,-929.0884,0.00012383,2]
[329757083,1718650689834,-929.0884,0.00012383,2]
[329757084,1718650691667,-929.0884,0.00012383,2]
[329757085,1718650692847,-511.86278597,0.00012383,2]
[329757086,1718650692868,-417.22561403,0.00012383,2]
[329757087,1718650704314,-17942.56157978,0.00012383,2]
[329757088,1718650740487,-929.0884,0.00012389,2]
[329757089,1718650857447,500.0,0.00012383,2]
[329757090,1718650857793,429.0884,0.00012383,2]
[329757091,1718650857813,70.9116,0.00012383,2]
[329757092,1718650858169,500.0,0.00012383,2]
[329757093,1718650858627,358.1768,0.00012383,2]
[329757094,1718650858649,344.8232,0.00012383,2]
[329757095,1718650859396,500.0,0.00012383,2]
[329757096,1718650859747,500.0,0.00012383,2]
[329757097,1718650860119,500.0,0.00012383,2]
[329757098,1718650861477,500.0,0.00012383,2]
[329757099,1718650862447,500.0,0.00012383,2]
[329757100,1718650862979,500.0,0.00012383,2]
[329757101,1718650863453,500.0,0.00012383,2]
[329757102,1718650864427,500.0,0.00012383,2]
[329757103,1718650864874,500.0,0.00012383,2]
[329757104,1718650865226,500.0,0.00012383,2]
[329757105,1718650866506,500.0,0.00012383,2]
[329757106,1718650866744,986.0,0.00012383,2]
[329757112,1718651076361,1253.38,0.00021589,30]
[329757114,1718651144721,-277.0,0.00013997,2]
[329757158,1718651432329,-328.23189261,0.00013994,2]
[329757159,1718651432341,-583.53802166,0.00013995,2]
[329757160,1718651432389,-627.88547419,0.00013995,2]
[329757161,1718651432398,-72.7915317,0.00013997,2]
[329757162,1718651432410,-582.67337236,0.00013997,2]
[329757163,1718651432420,-1089.88041119,0.00013999,5]
[329757164,1718651432430,-624.44673447,0.00017258,2]
[329757165,1718651432439,-463.93,0.00017567,2]
[329757166,1718651432449,-1769.0,0.000194,2]
[329757167,1718651432458,-358.79,0.00019407,2]
[329757168,1718651432467,-10000.0,0.00019425,2]
[329757169,1718651432476,-10296.36061736,0.00019438,2]
[329757170,1718651432488,-9235.78643565,0.00019438,2]
[329757171,1718651432499,-278.32388548,0.00019438,2]
[329757172,1718651432509,-626.33967887,0.00019438,2]
[329757173,1718651432625,-3453.18938264,0.00019438,2]
[329757174,1718651432635,-1395.66,0.00019438,2]
[329757175,1718651432644,-261.07,0.00019442,2]
[329757176,1718651432653,-250.0,0.00019448,2]
[329757177,1718651432663,-171.9,0.00019457,2]
[329757178,1718651432672,-250.0,0.00019472,2]
[329757179,1718651432682,-155.23586463,0.00019633,2]
[329757180,1718651432692,-424.40050855,0.00019633,2]
[329757181,1718651432701,-752.59370477,0.00019633,2]
[329757182,1718651432712,-439.99,0.0001977,2]
[329757183,1718651432724,-151.0,0.00019773,2]
[329757184,1718651432734,-463.93,0.00019831,2]
[329757185,1718651432743,-638.9,0.00019926,2]
[329757186,1718651432754,-638.9,0.00019931,2]
[329757187,1718651432763,-638.9,0.00019936,2]
[329757188,1718651432772,-638.9,0.00019942,2]
[329757189,1718651432781,-435.74814414,0.00019947,2]
[329757190,1718651432795,-203.15185586,0.00019947,2]
[329757191,1718651432805,-222.25096454,0.00019952,2]
[329757194,1718651432816,-416.64903546,0.00019952,2]
[329757196,1718651432825,-219.32580217,0.00019957,2]
[329757198,1718651432836,-386.97857912,0.00019957,2]
[329757200,1718651432848,-32.59561871,0.00019957,2]
[329757201,1718651432858,-383.91,0.00019959,2]
[329757202,1718651432867,-638.21436847,0.00019963,2]
[329757203,1718651433170,-0.68563153,0.00019963,2]
[329757204,1718651433179,-189.02,0.00019966,2]
[329757205,1718651433188,-638.9,0.00019968,2]
[329757206,1718651433198,-638.9,0.00019973,2]
[329757207,1718651433206,-3835.41576793,0.00019973,2]
[329757208,1718651433218,-20618.10623207,0.00019973,2]
[329757209,1718651433226,-638.9,0.00019978,2]
[329757210,1718651433235,-638.9,0.00019983,2]
[329757211,1718651433245,-638.9,0.00019989,2]
[329757212,1718651433254,-638.9,0.00019994,2]
[329757213,1718651433262,-638.9,0.00019999,2]
[329757214,1718651433271,-1605.29438725,0.0002,7]
[329757215,1718651433280,-638.9,0.00020004,2]
[329757216,1718651433290,-638.9,0.0002001,2]
[329757217,1718651433300,-638.9,0.00020015,2]
[329757218,1718651433310,-638.9,0.0002002,2]
[329757219,1718651433319,-638.9,0.00020025,2]
[329757220,1718651433328,-1500.0,0.00020081,5]
[329757221,1718651433339,-186.85,0.0002038,2]
[329757222,1718651433347,-1000.0,0.00020602,2]
[329757223,1718651433356,-151.0,0.0002062,2]
[329757224,1718651433366,-8174.01482384,0.000207,2]
[329757225,1718651433597,-11565.69408941,0.000207,2]
[329757226,1718651433608,-11746.0,0.000207,5]
[329757227,1718651433617,-257.55190198,0.00020819,2]
[329757228,1718651433627,-1000.0,0.00021075,2]
[329757229,1718651433636,-151.0,0.00021467,2]
[329757230,1718651433646,-157.06563925,0.000215,3]
[329757231,1718651433655,-400.0,0.000215,7]
[329757232,1718651433664,-900.0,0.000216,7]
[329757233,1718651433674,-1152.3065,0.00021669,2]
[329757234,1718651433684,-1300.0,0.000217,7]
[329757235,1718651433693,-2278.6643,0.00021717,2]
[329757236,1718651433702,-1000.0,0.00021717,2]
[329757237,1718651433715,-326.41929211,0.00021717,2]
[329757238,1718651433725,-1000.0,0.00021769,2]
[329757239,1718651433735,-415.23094008,0.00021793,19]
[329757240,1718651433744,-1800.0,0.000218,7]
[329757241,1718651433754,-834.42411592,0.00021815,2]
[329757242,1718651433765,-264.85545954,0.00021815,2]
[329757243,1718651433774,-262.81763311,0.00021815,2]
[329757244,1718651433783,-786.8894516,0.00021815,2]
[329757245,1718651433795,-1247.36037009,0.00021815,2]
[329757246,1718651433803,-500.0,0.00021816,2]
[329757247,1718651433813,-500.0,0.00021816,2]
[329757248,1718651433823,-500.0,0.00021816,2]
[329757249,1718651433832,-500.0,0.00021816,2]
[329757250,1718651433843,-500.0,0.00021816,2]
[329757251,1718651433852,-500.0,0.00021816,2]
[329757252,1718651433862,-500.0,0.00021816,2]
[329757253,1718651433871,-500.0,0.00021816,2]
[329757254,1718651433881,-156.12484619,0.00021816,2]
[329757255,1718651433892,-500.0,0.00021816,2]
[329757256,1718651433901,-10000.0,0.00021817,2]
[329757257,1718651433910,-500.0,0.00021817,2]
[329757258,1718651433919,-8494.58605935,0.00021817,2]
[329757265,1718651438193,-53851.27097099,0.00021817,2]
[329757266,1718651438271,-393.43862223,0.00021817,2]
[329757267,1718651438307,-544.49802541,0.00021817,2]
[329757268,1718651438363,-36716.20632202,0.00021817,2]
[329757269,1718651438373,-245000.0,0.00021817,2]
[329757270,1718651438383,-7500.0,0.00021817,2]
[329757271,1718651438393,-441.5783,0.00021817,2]
[329757272,1718651438403,-187.83944755,0.00021817,2]
[329757273,1718651438413,-172.7162141,0.00021817,2]
[329757274,1718651438422,-647.10124214,0.00021817,2]
[329757275,1718651438432,-2300.0,0.000219,7]
[329757276,1718651438442,-67943.17062419,0.000219,2]
[329757277,1718651440932,-310.50364999,0.000219,2]
[329757278,1718651441679,-4485.92499844,0.000219,2]
[329757279,1718651441691,-1135.06267938,0.000219,2]
[329757280,1718651441702,-2479.63000042,0.000219,2]
[329757281,1718651441771,-271.7099987,0.000219,2]
[329757282,1718651441883,-8941.99804888,0.000219,2]
[329757283,1718651441894,-209.00646061,0.00021907,2]
[329757284,1718651441903,-2222.64085019,0.00021915,7]
[329757285,1718651441913,-155.0,0.00021916,2]
[329757286,1718651441923,-385.09119383,0.00021916,2]
[329757287,1718651441952,-614.90880617,0.00021916,2]
[329757288,1718651441962,-1000.0,0.00021916,2]
[329757289,1718651441972,-543.0,0.00021917,2]
[329757290,1718651441982,-4149.15058992,0.00021917,2]
[329757291,1718651441991,-500.0,0.00021917,2]
[329757292,1718651442000,-536.55586454,0.00021917,2]
[329757294,1718651442010,-93.71710687,0.00021917,2]
[329757302,1718651443239,-346.02122738,0.00021917,2]
[329757303,1718651443298,-60.26166575,0.00021917,2]
[329757304,1718651443308,-339.63673972,0.00021917,2]
[329757305,1718651443414,-160.36326028,0.00021917,2]
[329757306,1718651443424,-500.0,0.00021917,2]
[329757307,1718651443433,-500.0,0.00021917,2]
[329757308,1718651443444,-500.0,0.00021917,2]
[329757309,1718651443454,-500.0,0.00021917,2]
[329757310,1718651443464,-500.0,0.00021917,2]
[329757311,1718651443474,-500.0,0.00021917,2]
[329757312,1718651443484,-500.0,0.00021917,2]
[329757313,1718651443494,-835.66,0.00021917,2]
[329757314,1718651443504,-500.0,0.00021917,2]
[329757315,1718651443513,-500.0,0.00021917,2]
[329757316,1718651443523,-500.0,0.00021917,2]
[329757317,1718651443533,-500.0,0.00021917,2]
[329757318,1718651443544,-675.2,0.00021917,2]
[329757319,1718651443554,-500.0,0.00021917,2]
[329757320,1718651443563,-500.0,0.00021917,2]
[329757321,1718651443573,-581.86,0.00021917,2]
[329757322,1718651443583,-500.0,0.00021917,2]
[329757323,1718651443592,-537.0,0.00021917,2]
[329757324,1718651443606,-500.0,0.00021917,2]
[329757325,1718651443615,-500.0,0.00021917,2]
[329757326,1718651443625,-538.80925074,0.00021917,2]
[329757327,1718651443635,-500.0,0.00021917,2]
[329757328,1718651443644,-843.18,0.00021917,2]
[329757329,1718651443653,-500.0,0.00021917,2]
[329757330,1718651443662,-500.0,0.00021917,2]
[329757331,1718651443672,-500.0,0.00021917,2]
[329757332,1718651443681,-500.0,0.00021917,2]
[329757333,1718651443691,-500.0,0.00021917,2]
[329757334,1718651443701,-500.0,0.00021917,2]
[329757335,1718651443711,-547.68,0.00021917,2]
[329757337,1718651443721,-1000.79456369,0.00021917,2]
[329757339,1718651443734,-500.0,0.00021917,2]
[329757341,1718651443744,-500.0,0.00021917,2]
[329757343,1718651443753,-500.0,0.00021917,2]
[329757345,1718651443764,-500.0,0.00021917,2]
[329757347,1718651443773,-500.0,0.00021917,2]
[329757349,1718651443783,-711.09,0.00021917,2]
[329757351,1718651443792,-500.0,0.00021917,2]
[329757353,1718651443804,-500.0,0.00021917,2]
[329757356,1718651443814,-500.0,0.00021917,2]
[329757359,1718651443823,-500.0,0.00021917,2]
[329757361,1718651443833,-500.0,0.00021917,2]
[329757363,1718651443843,-500.0,0.00021917,2]
[329757365,1718651443856,-500.0,0.00021917,2]
[329757367,1718651443865,-832.02,0.00021917,2]
[329757369,1718651443875,-500.0,0.00021917,2]
[329757371,1718651443884,-500.0,0.00021917,2]
[329757373,1718651443893,-500.0,0.00021917,2]
[329757375,1718651443903,-500.0,0.00021917,2]
[329757377,1718651443914,-1027.28,0.00021917,2]
[329757379,1718651443924,-616.27,0.00021917,2]
[329757381,1718651443934,-642.59705017,0.00021917,2]
[329757383,1718651443943,-500.0,0.00021917,2]
[329757385,1718651443952,-500.0,0.00021917,2]
[329757387,1718651443961,-500.0,0.00021917,2]
[329757389,1718651443971,-632.11,0.00021917,2]
[329757391,1718651443980,-500.0,0.00021917,2]
[329757393,1718651443990,-500.0,0.00021917,2]
[329757394,1718651444000,-500.0,0.00021917,2]
[329757395,1718651444009,-601.85,0.00021917,2]
[329757396,1718651444019,-515.59,0.00021917,2]
[329757397,1718651444028,-500.0,0.00021917,2]
[329757398,1718651444037,-500.0,0.00021917,2]
[329757399,1718651444046,-500.0,0.00021917,2]
[329757400,1718651444055,-363.91037826,0.00021917,2]
[329757401,1718651444072,-580.32962174,0.00021917,2]
[329757402,1718651444082,-174.10919756,0.00021917,2]
[329757403,1718651444093,-450.0,0.00021917,2]
[329757404,1718651444123,-83.53080244,0.00021917,2]
[329757405,1718651444133,-241.95492751,0.00021917,2]
[329757406,1718651444161,-258.04507249,0.00021917,2]
[329757407,1718651444171,-500.0,0.00021917,2]
[329757408,1718651444180,-500.0,0.00021917,2]
[329757409,1718651444190,-500.0,0.00021917,2]
[329757410,1718651444199,-419.4432663,0.00021917,2]
[329757411,1718651444211,-80.5567337,0.00021917,2]
[329757412,1718651444221,-500.0,0.00021917,2]
[329757413,1718651444230,-652.4,0.00021917,2]
[329757414,1718651444240,-500.0,0.00021917,2]
[329757415,1718651444249,-30.08189296,0.00021917,2]
[329757476,1718651446286,-454.45789785,0.00021917,2]
[329757477,1718651446298,-15.46020919,0.00021917,2]
[329757478,1718651446308,-922.42861942,0.00021917,2]
[329757479,1718651446320,-1333.85138058,0.00021917,2]
[329757480,1718651446329,-501.9313617,0.00021917,2]
[329757481,1718651446339,-131.02964517,0.00021917,2]
[329757482,1718651446354,-368.97035483,0.00021917,2]
[329757483,1718651446364,-500.0,0.00021917,2]
[329757484,1718651446374,-654.16,0.00021917,2]
[329757485,1718651446383,-500.0,0.00021917,2]
[329757486,1718651446393,-500.0,0.00021917,2]
[329757487,1718651446403,-395.14521093,0.00021917,2]
[329757488,1718651446420,-104.85478907,0.00021917,2]
[329757489,1718651446430,-500.0,0.00021917,2]
[329757490,1718651446440,-129.16987372,0.00021917,2]
[329757491,1718651446452,-370.83012628,0.00021917,2]
[329757492,1718651446461,-89.52487351,0.00021917,2]
[329757493,1718651446486,-91.36058455,0.00021917,2]
[329757494,1718651446495,-500.0,0.00021917,2]
[329757495,1718651446505,-768.64,0.00021917,2]
[329757496,1718651446515,-508.48,0.00021917,2]
[329757497,1718651446525,-500.0,0.00021917,2]
[329757498,1718651446534,-467.31212196,0.00021917,2]
[329757499,1718651446547,-120.46787804,0.00021917,2]
[329757500,1718651446556,-1624.75,0.00021917,2]
[329757501,1718651446565,-153.0159324,0.00021917,2]
[329757502,1718651446577,-567.8940676,0.00021917,2]
[329757503,1718651446586,-681.2,0.00021917,2]
[329757504,1718651446598,-411.08283687,0.00021917,2]
[329757505,1718651446609,-88.91716313,0.00021917,2]
[329757506,1718651446618,-500.0,0.00021917,2]
[329757507,1718651446627,-500.0,0.00021917,2]
[329757508,1718651446636,-500.0,0.00021917,2]
[329757509,1718651446645,-874.17,0.00021917,2]
[329757510,1718651446655,-500.0,0.00021917,2]
[329757511,1718651446665,-628.59,0.00021917,2]
[329757512,1718651446674,-500.0,0.00021917,2]
[329757513,1718651446684,-1220.45,0.00021917,2]
[329757514,1718651446694,-500.0,0.00021917,2]
[329757515,1718651446705,-663.59,0.00021917,2]
[329757517,1718651446715,-500.0,0.00021917,2]
[329757519,1718651446728,-500.0,0.00021917,2]
[329757521,1718651446737,-500.0,0.00021917,2]
[329757523,1718651446749,-500.0,0.00021917,2]
[329757525,1718651446759,-500.0,0.00021917,2]
[329757527,1718651446768,-500.0,0.00021917,2]
[329757529,1718651446778,-500.0,0.00021917,2]
[329757531,1718651446788,-759.75,0.00021917,2]
[329757534,1718651446799,-1276.37,0.00021917,2]
[329757536,1718651446808,-500.0,0.00021917,2]
[329757538,1718651446819,-500.0,0.00021917,2]
[329757540,1718651446828,-500.0,0.00021917,2]
[329757541,1718651446838,-1041.62,0.00021917,2]
[329757543,1718651446848,-500.0,0.00021917,2]
[329757547,1718651446858,-505.0,0.00021917,2]
[329757549,1718651446867,-500.0,0.00021917,2]
[329757552,1718651446876,-500.0,0.00021917,2]
[329757554,1718651446885,-500.0,0.00021917,2]
[329757556,1718651446895,-500.0,0.00021917,2]
[329757559,1718651446904,-500.0,0.00021917,2]
[329757562,1718651446914,-500.0,0.00021917,2]
[329757564,1718651446923,-500.0,0.00021917,2]
[329757566,1718651446933,-500.0,0.00021917,2]
[329757568,1718651446942,-500.0,0.00021917,2]
[329757570,1718651446951,-500.0,0.00021917,2]
[329757572,1718651446959,-500.0,0.00021917,2]
[329757574,1718651446969,-500.0,0.00021917,2]
[329757598,1718651447175,-2096.32,0.00021917,2]
[329757600,1718651447185,-500.0,0.00021917,2]
[329757602,1718651447194,-701.48,0.00021917,2]
[329757604,1718651447204,-500.0,0.00021917,2]
[329757606,1718651447213,-500.0,0.00021917,2]
[329757608,1718651447222,-500.0,0.00021917,2]
[329757610,1718651447231,-717.87,0.00021917,2]
[329757612,1718651447241,-500.0,0.00021917,2]
[329757613,1718651447250,-500.0,0.00021917,2]
[329757616,1718651447260,-500.0,0.00021917,2]
[329757617,1718651447269,-576.57,0.00021917,2]
[329757619,1718651447278,-500.0,0.00021917,2]
[329757621,1718651447287,-500.0,0.00021917,2]
[329757623,1718651447297,-500.0,0.00021917,2]
[329757625,1718651447306,-500.0,0.00021917,2]
[329757627,1718651447317,-507.08,0.00021917,2]
[329757629,1718651447327,-500.0,0.00021917,2]
[329757631,1718651447337,-500.0,0.00021917,2]
[329757633,1718651447348,-500.0,0.00021917,2]
[329757635,1718651447357,-908.79,0.00021917,2]
[329757637,1718651447366,-500.0,0.00021917,2]
[329757639,1718651447377,-500.0,0.00021917,2]
[329757641,1718651447388,-500.0,0.00021917,2]
[329757643,1718651447398,-500.0,0.00021917,2]
[329757645,1718651447408,-500.0,0.00021917,2]
[329757647,1718651447419,-500.0,0.00021917,2]
[329757649,1718651447429,-500.0,0.00021917,2]
[329757650,1718651447439,-500.0,0.00021917,2]
[329757652,1718651447450,-500.0,0.00021917,2]
[329757655,1718651447461,-500.0,0.00021917,2]
[329757657,1718651447471,-500.0,0.00021917,2]
[329757659,1718651447481,-500.0,0.00021917,2]
[329757661,1718651447493,-639.38328351,0.00021917,2]
[329757663,1718651447505,-682.05,0.00021917,2]
[329757665,1718651447517,-500.0,0.00021917,2]
[329757667,1718651447527,-500.0,0.00021917,2]
[329757669,1718651447537,-500.0,0.00021917,2]
[329757670,1718651447547,-500.0,0.00021917,2]
[329757672,1718651447558,-500.0,0.00021917,2]
[329757674,1718651447569,-500.0,0.00021917,2]
[329757676,1718651447580,-500.0,0.00021917,2]
[329757679,1718651447590,-500.0,0.00021917,2]
[329757681,1718651447602,-500.0,0.00021917,2]
[329757683,1718651447613,-500.0,0.00021917,2]
[329757685,1718651447624,-500.0,0.00021917,2]
[329757686,1718651447634,-500.0,0.00021917,2]
[329757688,1718651447645,-500.0,0.00021917,2]
[329757691,1718651447656,-500.0,0.00021917,2]
[329757692,1718651447667,-2512.34,0.00021917,2]
[329757695,1718651447678,-593.02,0.00021917,2]
[329757697,1718651447689,-558.11,0.00021917,2]
[329757699,1718651447700,-500.0,0.00021917,2]
[329757700,1718651447710,-500.0,0.00021917,2]
[329757702,1718651447725,-500.0,0.00021917,2]
[329757704,1718651447735,-500.0,0.00021917,2]
[329757707,1718651447747,-500.0,0.00021917,2]
[329757708,1718651447759,-500.0,0.00021917,2]
[329757710,1718651447771,-549.88,0.00021917,2]
[329757712,1718651447781,-500.0,0.00021917,2]
[329757715,1718651447793,-574.53,0.00021917,2]
[329757717,1718651447806,-500.0,0.00021917,2]
[329757719,1718651447817,-500.0,0.00021917,2]
[329757721,1718651447827,-643.48,0.00021917,2]
[329757723,1718651447837,-500.0,0.00021917,2]
[329757725,1718651447848,-500.0,0.00021917,2]
[329757727,1718651447859,-812.57,0.00021917,2]
[329757729,1718651447869,-500.0,0.00021917,2]
[329757731,1718651447879,-500.0,0.00021917,2]
[329757733,1718651447890,-500.0,0.00021917,2]
[329757735,1718651447900,-619.53,0.00021917,2]
[329757737,1718651447910,-500.0,0.00021917,2]
[329757739,1718651447920,-500.0,0.00021917,2]
[329757741,1718651447932,-500.0,0.00021917,2]
[329757742,1718651447943,-500.0,0.00021917,2]
[329757744,1718651447954,-2014.79,0.00021917,2]
[329757747,1718651447965,-500.0,0.00021917,2]
[329757749,1718651447976,-512.09603936,0.00021917,2]
[329757750,1718651447986,-713.26,0.00021917,2]
[329757753,1718651447998,-595.67,0.00021917,2]
[329757755,1718651448008,-500.0,0.00021917,2]
[329757756,1718651448018,-532.2572637,0.00021917,2]
[329757759,1718651448029,-500.0,0.00021917,2]
[329757761,1718651448041,-500.0,0.00021917,2]
[329757762,1718651448051,-500.0,0.00021917,2]
[329757765,1718651448061,-500.0,0.00021917,2]
[329757767,1718651448072,-541.99,0.00021917,2]
[329757769,1718651448082,-1401.32,0.00021917,2]
[329757771,1718651448093,-500.0,0.00021917,2]
[329757773,1718651448105,-500.0,0.00021917,2]
[329757774,1718651448115,-585.61,0.00021917,2]
[329757776,1718651448125,-895.85,0.00021917,2]
[329757778,1718651448135,-500.0,0.00021917,2]
[329757781,1718651448145,-500.0,0.00021917,2]
[329757782,1718651448156,-500.0,0.00021917,2]
[329757785,1718651448167,-500.0,0.00021917,2]
[329757787,1718651448178,-590.16235027,0.00021917,2]
[329757789,1718651448189,-500.0,0.00021917,2]
[329757791,1718651448199,-500.0,0.00021917,2]
[329757792,1718651448211,-1971.77,0.00021917,2]
[329757795,1718651448222,-850.77,0.00021917,2]
[329757797,1718651448233,-500.0,0.00021917,2]
[329757798,1718651448243,-500.0,0.00021917,2]
[329757801,1718651448255,-500.0,0.00021917,2]
[329757802,1718651448265,-522.77860734,0.00021917,2]
[329757805,1718651448276,-500.0,0.00021917,2]
[329757806,1718651448287,-1250.19,0.00021917,2]
[329757809,1718651448297,-500.0,0.00021917,2]
[329757810,1718651448308,-500.0,0.00021917,2]
[329757812,1718651448319,-500.0,0.00021917,2]
[329757815,1718651448330,-500.0,0.00021917,2]
[329757817,1718651448341,-500.0,0.00021917,2]
[329757819,1718651448355,-500.0,0.00021917,2]
[329757821,1718651448365,-1595.07,0.00021917,2]
[329757823,1718651448377,-500.0,0.00021917,2]
[329757825,1718651448388,-500.0,0.00021917,2]
[329757827,1718651448399,-500.0,0.00021917,2]
[329757829,1718651448408,-642.8,0.00021917,2]
[329757831,1718651448419,-500.0,0.00021917,2]
[329757833,1718651448430,-2118.97,0.00021917,2]
[329757835,1718651448440,-500.0,0.00021917,2]
[329757837,1718651448451,-500.0,0.00021917,2]
[329757839,1718651448461,-500.0,0.00021917,2]
[329757841,1718651448471,-500.0,0.00021917,2]
[329757843,1718651448481,-500.0,0.00021917,2]
[329757845,1718651448491,-500.0,0.00021917,2]
[329757847,1718651448500,-613.81,0.00021917,2]
[329757849,1718651448511,-1281.43,0.00021917,2]
[329757851,1718651448524,-500.0,0.00021917,2]
[329757853,1718651448535,-500.0,0.00021917,2]
[329757855,1718651448545,-500.0,0.00021917,2]
[329757857,1718651448556,-500.0,0.00021917,2]
[329757859,1718651448566,-500.0,0.00021917,2]
[329757861,1718651448575,-938.02,0.00021917,2]
[329757863,1718651448585,-500.0,0.00021917,2]
[329757865,1718651448596,-500.0,0.00021917,2]
[329757866,1718651448608,-500.0,0.00021917,2]
[329757869,1718651448622,-500.0,0.00021917,2]
[329757871,1718651448633,-500.0,0.00021917,2]
[329757873,1718651448643,-768.48,0.00021917,2]
[329757875,1718651448654,-277.19359307,0.00021917,2]
[329757877,1718651448664,-500.0,0.00021917,2]
[329757879,1718651448673,-836.77,0.00021917,2]
[329757881,1718651448684,-500.0,0.00021917,2]
[329757882,1718651448694,-500.0,0.00021917,2]
[329757884,1718651448704,-869.77,0.00021917,2]
[329757887,1718651448715,-553.85852455,0.00021917,2]
[329757888,1718651448729,-973.93,0.00021917,2]
[329757891,1718651448739,-500.0,0.00021917,2]
[329757893,1718651448749,-500.0,0.00021917,2]
[329757895,1718651448759,-500.0,0.00021917,2]
[329757897,1718651448771,-2012.23,0.00021917,2]
[329757899,1718651448781,-723.14,0.00021917,2]
[329757900,1718651448790,-500.0,0.00021917,2]
[329757903,1718651448802,-500.0,0.00021917,2]
[329757904,1718651448812,-500.0,0.00021917,2]
[329757907,1718651448822,-500.0,0.00021917,2]
[329757908,1718651448832,-500.0,0.00021917,2]
[329757911,1718651448842,-500.0,0.00021917,2]
[329757912,1718651448856,-1014.55,0.00021917,2]
[329757914,1718651448865,-500.0,0.00021917,2]
[329757916,1718651448875,-500.0,0.00021917,2]
[329757919,1718651448884,-1000.0,0.00021917,2]
[329757920,1718651448893,-500.0,0.00021917,2]
[329757922,1718651448903,-500.0,0.00021917,2]
[329757924,1718651448913,-500.0,0.00021917,2]
[329757925,1718651448923,-1244.79,0.00021917,2]
[329757926,1718651448932,-1875.9,0.00021917,2]
[329757927,1718651448942,-500.0,0.00021917,2]
[329757928,1718651448950,-500.0,0.00021917,2]
[329757929,1718651448960,-951.76,0.00021917,2]
[329757930,1718651448970,-811.21,0.00021917,2]
[329757931,1718651448980,-500.0,0.00021917,2]
[329757932,1718651448989,-500.0,0.00021917,2]
[329757933,1718651448999,-500.0,0.00021917,2]
[329757934,1718651449009,-500.0,0.00021917,2]
[329757935,1718651449018,-188.94673594,0.00021917,2]
[329757936,1718651449028,-500.0,0.00021917,2]
[329757938,1718651449038,-500.0,0.00021917,2]
[329757940,1718651449047,-500.0,0.00021917,2]
[329757942,1718651449056,-500.0,0.00021917,2]
[329757944,1718651449065,-1918.73774765,0.00021917,2]
[329757946,1718651449075,-1103.63,0.00021917,2]
[329757947,1718651449084,-500.0,0.00021917,2]
[329757949,1718651449093,-1250.99,0.00021917,2]
[329757951,1718651449106,-500.0,0.00021917,2]
[329757953,1718651449116,-500.0,0.00021917,2]
[329757955,1718651449125,-500.0,0.00021917,2]
[329757956,1718651449135,-494.09800765,0.00021917,2]
[329757957,1718651449144,-568.14117772,0.00021917,2]
[329757958,1718651449154,-500.0,0.00021917,2]
[329757959,1718651449163,-890.7,0.00021917,2]
[329757960,1718651449174,-500.0,0.00021917,2]
[329757961,1718651449184,-500.0,0.00021917,2]